[Event "*** Titled Tuesday Blitz"]
[Site "Chess.com"]
[Date "2018.06.05"]
[Round "2"]
[White "Tibmat"]
[Black "cukus"]
[Result "1-0"]
[WhiteElo "2397"]
[BlackElo "2362"]
[TimeControl "180+2"]
[EndTime "13:26:06 PDT"]
[Termination "Tibmat won on time"]

1. Nf3 {[%clk 0:02:52.2]} 1... c5 {[%clk 0:02:58.3]} 2. c4 {[%clk 0:02:52.8]}
2... Nf6 {[%clk 0:02:55]} 3. b3 {[%clk 0:02:51.3]} 3... g6 {[%clk 0:02:52.1]} 4.
Bb2 {[%clk 0:02:50.3]} 4... Bg7 {[%clk 0:02:53.2]} 5. g3 {[%clk 0:02:50.9]} 5...
O-O {[%clk 0:02:54.3]} 6. Bg2 {[%clk 0:02:52.5]} 6... Nc6 {[%clk 0:02:54.1]} 7.
O-O {[%clk 0:02:53.9]} 7... b6 {[%clk 0:02:53.4]} 8. d4 {[%clk 0:02:54.5]} 8...
cxd4 {[%clk 0:02:53.3]} 9. Nxd4 {[%clk 0:02:56.4]} 9... Bb7 {[%clk 0:02:53.9]}
10. Nc3 {[%clk 0:02:57.6]} 10... Rc8 {[%clk 0:02:46.5]} 11. Rc1 {[%clk
0:02:54.3]} 11... d6 {[%clk 0:02:44.6]} 12. Qd2 {[%clk 0:02:54.7]} 12... Qd7
{[%clk 0:02:40.3]} 13. Rfd1 {[%clk 0:02:49.3]} 13... Nxd4 {[%clk 0:02:39.9]} 14.
Qxd4 {[%clk 0:02:51.2]} 14... Bxg2 {[%clk 0:02:40.4]} 15. Kxg2 {[%clk
0:02:53.1]} 15... Qb7+ {[%clk 0:02:40.6]} 16. f3 {[%clk 0:02:54]} 16... Nd7
{[%clk 0:02:10.9]} 17. Qd2 {[%clk 0:02:51.3]} 17... Nf6 {[%clk 0:02:02.6]} 18.
e4 {[%clk 0:02:51.2]} 18... Rfd8 {[%clk 0:02:00.9]} 19. Re1 {[%clk 0:02:42.5]}
19... e6 {[%clk 0:01:59.3]} 20. Rcd1 {[%clk 0:02:42.4]} 20... a6 {[%clk
0:01:53.7]} 21. a4 {[%clk 0:02:40.1]} 21... Qc6 {[%clk 0:01:53]} 22. Ne2 {[%clk
0:02:01.2]} 22... d5 {[%clk 0:01:45.4]} 23. cxd5 {[%clk 0:01:49]} 23... exd5
{[%clk 0:01:42.8]} 24. e5 {[%clk 0:01:50.3]} 24... Nd7 {[%clk 0:01:39.7]} 25.
Nd4 {[%clk 0:01:51.7]} 25... Qc7 {[%clk 0:01:15.9]} 26. e6 {[%clk 0:01:12.3]}
26... Nc5 {[%clk 0:01:16.3]} 27. exf7+ {[%clk 0:01:04.4]} 27... Qxf7 {[%clk
0:01:12.8]} 28. Re3 {[%clk 0:00:57.1]} 28... Re8 {[%clk 0:01:10]} 29. Rde1
{[%clk 0:00:58.4]} 29... Rxe3 {[%clk 0:00:59.3]} 30. Qxe3 {[%clk 0:01:00.3]}
30... Rf8 {[%clk 0:00:52]} 31. Qe7 {[%clk 0:00:42.6]} 31... Bxd4 {[%clk
0:00:30.7]} 32. Qxf7+ {[%clk 0:00:41.2]} 32... Kxf7 {[%clk 0:00:31.3]} 33. Bxd4
{[%clk 0:00:43.1]} 33... Nxb3 {[%clk 0:00:30.8]} 34. Bxb6 {[%clk 0:00:44.3]}
34... Re8 {[%clk 0:00:29.9]} 35. Rxe8 {[%clk 0:00:33.3]} 35... Kxe8 {[%clk
0:00:31.8]} 36. Kf2 {[%clk 0:00:35.2]} 36... Nd2 {[%clk 0:00:30.5]} 37. Ke2
{[%clk 0:00:33.3]} 37... Nc4 {[%clk 0:00:30.9]} 38. Bc5 {[%clk 0:00:33.9]} 38...
Kd7 {[%clk 0:00:30.3]} 39. Kd3 {[%clk 0:00:35.2]} 39... Nb2+ {[%clk 0:00:21.4]}
40. Kd4 {[%clk 0:00:32.2]} 40... Nxa4 {[%clk 0:00:17.8]} 41. Bb4 {[%clk
0:00:30.3]} 41... Kc6 {[%clk 0:00:18.6]} 42. f4 {[%clk 0:00:31.4]} 42... Nb6
{[%clk 0:00:14.4]} 43. g4 {[%clk 0:00:32.6]} 43... Nc4 {[%clk 0:00:12.2]} 44. f5
{[%clk 0:00:33.2]} 44... gxf5 {[%clk 0:00:13.3]} 45. gxf5 {[%clk 0:00:35.1]}
45... Nd6 {[%clk 0:00:11.3]} 46. Ke5 {[%clk 0:00:34.7]} 46... Nxf5 {[%clk
0:00:04.8]} 47. Kxf5 {[%clk 0:00:36.6]} 47... Kb5 {[%clk 0:00:06.3]} 48. Bd2
{[%clk 0:00:32.8]} 48... Kc4 {[%clk 0:00:07.4]} 49. Ke5 {[%clk 0:00:30.3]} 49...
d4 {[%clk 0:00:05.2]} 50. Ke4 {[%clk 0:00:31.1]} 50... h5 {[%clk 0:00:03.4]} 51.
h4 {[%clk 0:00:30.4]} 51... Kc5 {[%clk 0:00:03.3]} 52. Kd3 {[%clk 0:00:27.9]}
52... Kd5 {[%clk 0:00:04.2]} 53. Be1 {[%clk 0:00:27.5]} 1-0

[Event "*** Titled Tuesday Blitz"]
[Site "Chess.com"]
[Date "2018.06.05"]
[Round "2"]
[White "GM_dmitrij"]
[Black "kuli4ik"]
[Result "1-0"]
[WhiteElo "2673"]
[BlackElo "2678"]
[TimeControl "180+2"]
[EndTime "13:26:07 PDT"]
[Termination "GM_dmitrij won by resignation"]

1. e4 {[%clk 0:03:01.9]} 1... c6 {[%clk 0:03:00.5]} 2. d4 {[%clk 0:02:56]} 2...
d5 {[%clk 0:03:01.5]} 3. e5 {[%clk 0:02:57.1]} 3... Bf5 {[%clk 0:03:01.7]} 4. h4
{[%clk 0:02:58.6]} 4... Qb6 {[%clk 0:02:53]} 5. h5 {[%clk 0:02:58.8]} 5... c5
{[%clk 0:02:51.7]} 6. dxc5 {[%clk 0:02:53.1]} 6... Qxc5 {[%clk 0:02:52.2]} 7.
Bd3 {[%clk 0:02:54.6]} 7... Bxd3 {[%clk 0:02:51.3]} 8. Qxd3 {[%clk 0:02:56.5]}
8... e6 {[%clk 0:02:50.7]} 9. Nc3 {[%clk 0:02:56.3]} 9... Nc6 {[%clk 0:02:50.5]}
10. Nf3 {[%clk 0:02:56.6]} 10... Nge7 {[%clk 0:02:49.1]} 11. Be3 {[%clk
0:02:38.6]} 11... Qa5 {[%clk 0:02:47.5]} 12. O-O-O {[%clk 0:02:38.6]} 12... Nf5
{[%clk 0:02:46.9]} 13. Kb1 {[%clk 0:02:33.6]} 13... Nxe3 {[%clk 0:02:44]} 14.
fxe3 {[%clk 0:02:24.6]} 14... Bb4 {[%clk 0:02:43.4]} 15. Nb5 {[%clk 0:02:23.8]}
15... O-O-O {[%clk 0:02:39.7]} 16. Nbd4 {[%clk 0:02:12.1]} 16... h6 {[%clk
0:02:33]} 17. Rhf1 {[%clk 0:02:02.7]} 17... Rd7 {[%clk 0:02:25.7]} 18. Nxc6
{[%clk 0:01:43.4]} 18... bxc6 {[%clk 0:02:27.6]} 19. Nd4 {[%clk 0:01:45]} 19...
Qb6 {[%clk 0:02:23.5]} 20. c3 {[%clk 0:01:33]} 20... Bc5 {[%clk 0:02:13]} 21.
Rf3 {[%clk 0:01:33.3]} 21... Kb8 {[%clk 0:01:44.3]} 22. Rdf1 {[%clk 0:01:31.9]}
22... Bxd4 {[%clk 0:01:33.2]} 23. cxd4 {[%clk 0:01:26.3]} 23... Qc7 {[%clk
0:01:25.6]} 24. Rc1 {[%clk 0:01:26.5]} 24... Ka8 {[%clk 0:01:00.7]} 25. Rf2
{[%clk 0:01:27.4]} 25... Qb7 {[%clk 0:00:58.5]} 26. Rfc2 {[%clk 0:01:28.2]}
26... Rc7 {[%clk 0:00:59.7]} 27. Ka1 {[%clk 0:01:23.4]} 27... Qc8 {[%clk
0:00:45]} 28. Rc5 {[%clk 0:01:23.7]} 28... Qd7 {[%clk 0:00:44.9]} 29. Qa6 {[%clk
0:01:21.7]} 29... Rhc8 {[%clk 0:00:43.2]} 30. b4 {[%clk 0:01:22.7]} 30... Kb8
{[%clk 0:00:38.7]} 31. R1c3 {[%clk 0:01:04.9]} 31... Rb7 {[%clk 0:00:36.7]} 32.
Qa4 {[%clk 0:00:48.7]} 32... Rb6 {[%clk 0:00:33.9]} 33. Qa5 {[%clk 0:00:46.2]}
33... f5 {[%clk 0:00:33.1]} 34. exf6 {[%clk 0:00:46.6]} 34... gxf6 {[%clk
0:00:34.8]} 35. a4 {[%clk 0:00:44.1]} 35... e5 {[%clk 0:00:33.8]} 36. b5 {[%clk
0:00:41.7]} 36... exd4 {[%clk 0:00:34.4]} 37. exd4 {[%clk 0:00:43.6]} 37... Qg4
{[%clk 0:00:32.8]} 38. Qb4 {[%clk 0:00:44.7]} 38... Re8 {[%clk 0:00:19]} 39.
Rxc6 {[%clk 0:00:39.3]} 39... Re1+ {[%clk 0:00:17]} 40. Kb2 {[%clk 0:00:29.4]}
40... Qe2+ {[%clk 0:00:15.2]} 41. Rc2 {[%clk 0:00:30.7]} 41... Qe7 {[%clk
0:00:14.3]} 42. R6c5 {[%clk 0:00:24.1]} 42... Re2 {[%clk 0:00:13]} 43. Qc3
{[%clk 0:00:18.8]} 43... Rxc2+ {[%clk 0:00:13.5]} 44. Qxc2 {[%clk 0:00:20.7]}
44... Re6 {[%clk 0:00:14.6]} 45. Ka3 {[%clk 0:00:19.4]} 45... Re3+ {[%clk
0:00:14.9]} 46. Kb4 {[%clk 0:00:19.6]} 46... Re4 {[%clk 0:00:16.3]} 47. Qd3
{[%clk 0:00:18]} 47... Qe5 {[%clk 0:00:14.5]} 48. Qc3 {[%clk 0:00:15.3]} 48...
Qxd4+ {[%clk 0:00:14.8]} 49. Qxd4 {[%clk 0:00:16.1]} 49... Rxd4+ {[%clk
0:00:16.7]} 50. Ka5 {[%clk 0:00:18]} 50... Rd2 {[%clk 0:00:16.6]} 51. Ka6 {[%clk
0:00:16]} 51... Rxg2 {[%clk 0:00:16.5]} 52. Rxd5 {[%clk 0:00:16.8]} 52... Re2
{[%clk 0:00:12]} 53. Rd8+ {[%clk 0:00:15.6]} 53... Kc7 {[%clk 0:00:13.1]} 54.
Rf8 {[%clk 0:00:17]} 54... Re5 {[%clk 0:00:12.5]} 55. Kxa7 {[%clk 0:00:16.4]}
55... Rxh5 {[%clk 0:00:13.5]} 56. b6+ {[%clk 0:00:15.8]} 1-0

[Event "*** Titled Tuesday Blitz"]
[Site "Chess.com"]
[Date "2018.06.05"]
[Round "2"]
[White "pKiLz5Rn9b"]
[Black "nihalsarin"]
[Result "1-0"]
[WhiteElo "2637"]
[BlackElo "2749"]
[TimeControl "180+2"]
[EndTime "13:26:08 PDT"]
[Termination "pKiLz5Rn9b won by resignation"]

1. b3 {[%clk 0:02:39.5]} 1... e5 {[%clk 0:02:58.3]} 2. Bb2 {[%clk 0:02:39.1]}
2... Nc6 {[%clk 0:02:59.7]} 3. e3 {[%clk 0:02:40]} 3... g6 {[%clk 0:03:01.1]} 4.
d4 {[%clk 0:02:39.7]} 4... exd4 {[%clk 0:02:36.4]} 5. Nf3 {[%clk 0:02:40.4]}
5... Bg7 {[%clk 0:02:37.8]} 6. Nxd4 {[%clk 0:02:41.4]} 6... Nxd4 {[%clk
0:02:38.7]} 7. Bxd4 {[%clk 0:02:34.3]} 7... Nf6 {[%clk 0:02:40]} 8. c4 {[%clk
0:02:33.7]} 8... O-O {[%clk 0:02:41.2]} 9. Nc3 {[%clk 0:02:31.7]} 9... d6 {[%clk
0:02:32.3]} 10. Nd5 {[%clk 0:01:49.5]} 10... Nxd5 {[%clk 0:02:12.2]} 11. cxd5
{[%clk 0:01:48.7]} 11... c5 {[%clk 0:02:13.4]} 12. dxc6 {[%clk 0:01:34.8]} 12...
bxc6 {[%clk 0:02:14.7]} 13. Bxg7 {[%clk 0:01:33.7]} 13... Kxg7 {[%clk
0:02:16.6]} 14. Be2 {[%clk 0:01:31.9]} 14... Qf6 {[%clk 0:02:15.8]} 15. Rc1
{[%clk 0:01:31.4]} 15... c5 {[%clk 0:02:04]} 16. Bf3 {[%clk 0:01:32.2]} 16...
Rb8 {[%clk 0:02:04.1]} 17. O-O {[%clk 0:01:33]} 17... Rd8 {[%clk 0:02:03.3]} 18.
Qd2 {[%clk 0:01:29.5]} 18... Bb7 {[%clk 0:01:40.6]} 19. Bxb7 {[%clk 0:01:18]}
19... Rxb7 {[%clk 0:01:42.5]} 20. Rfd1 {[%clk 0:01:19.5]} 20... Rbd7 {[%clk
0:01:39.5]} 21. Rc3 {[%clk 0:01:10.2]} 21... Qe5 {[%clk 0:00:51.4]} 22. Qc2
{[%clk 0:01:04.8]} 22... h5 {[%clk 0:00:34.6]} 23. h4 {[%clk 0:01:03.1]} 23...
Qf6 {[%clk 0:00:35.2]} 24. g3 {[%clk 0:01:01.6]} 24... a5 {[%clk 0:00:31.9]} 25.
Rcd3 {[%clk 0:01:01.4]} 25... Re8 {[%clk 0:00:32.9]} 26. Qc4 {[%clk 0:00:56.3]}
26... Re6 {[%clk 0:00:34]} 27. Qa4 {[%clk 0:00:55.7]} 27... Qd8 {[%clk
0:00:29.5]} 28. Qc6 {[%clk 0:00:49.9]} 28... Qe7 {[%clk 0:00:21.4]} 29. Qa6
{[%clk 0:00:44.9]} 29... Rf6 {[%clk 0:00:16.6]} 30. Qxa5 {[%clk 0:00:41.9]}
30... Qe4 {[%clk 0:00:17.3]} 31. Qd2 {[%clk 0:00:41.1]} 31... Qf3 {[%clk
0:00:17.4]} 32. Re1 {[%clk 0:00:38.7]} 32... d5 {[%clk 0:00:18]} 33. e4 {[%clk
0:00:36.6]} 33... Qg4 {[%clk 0:00:14]} 34. Rxd5 {[%clk 0:00:34.6]} 34... Re7
{[%clk 0:00:12.6]} 35. e5 {[%clk 0:00:35.6]} 35... Rf3 {[%clk 0:00:13]} 36. Rd3
{[%clk 0:00:31.4]} 36... Re6 {[%clk 0:00:10.8]} 37. Rxf3 {[%clk 0:00:30]} 37...
Qxf3 {[%clk 0:00:12.7]} 38. Qe3 {[%clk 0:00:28]} 38... Qd5 {[%clk 0:00:13.6]}
39. a4 {[%clk 0:00:29.3]} 39... Rb6 {[%clk 0:00:14.5]} 40. Rc1 {[%clk
0:00:23.1]} 40... Rxb3 {[%clk 0:00:15.3]} 41. Qxc5 {[%clk 0:00:21.3]} 41... Qe4
{[%clk 0:00:16.8]} 42. Qc4 {[%clk 0:00:19.7]} 42... Qf3 {[%clk 0:00:17.8]} 43.
e6 {[%clk 0:00:11.6]} 43... fxe6 {[%clk 0:00:18.8]} 44. Qxe6 {[%clk 0:00:11.2]}
44... Rb7 {[%clk 0:00:20.2]} 45. Qe5+ {[%clk 0:00:11.5]} 45... Kh6 {[%clk
0:00:20.9]} 46. a5 {[%clk 0:00:12.8]} 46... Rf7 {[%clk 0:00:20.9]} 47. Qd4
{[%clk 0:00:11.1]} 47... Kh7 {[%clk 0:00:21.2]} 48. Ra1 {[%clk 0:00:11.8]} 48...
Qf5 {[%clk 0:00:16]} 49. a6 {[%clk 0:00:13]} 49... Qc8 {[%clk 0:00:17.1]} 50. a7
{[%clk 0:00:13.6]} 50... Qa8 {[%clk 0:00:18.7]} 51. Qb6 {[%clk 0:00:14.8]} 51...
Rb7 {[%clk 0:00:17.9]} 52. Qxb7+ {[%clk 0:00:15.6]} 52... Qxb7 {[%clk
0:00:19.4]} 53. a8=Q {[%clk 0:00:16.7]} 1-0

[Event "*** Titled Tuesday Blitz"]
[Site "Chess.com"]
[Date "2018.06.05"]
[Round "2"]
[White "OK97"]
[Black "Amirreza_p"]
[Result "1-0"]
[WhiteElo "2662"]
[BlackElo "2691"]
[TimeControl "180+2"]
[EndTime "13:26:11 PDT"]
[Termination "OK97 won by resignation"]

1. c4 {[%clk 0:03:01.9]} 1... e6 {[%clk 0:03:00.8]} 2. Nc3 {[%clk 0:03:02.9]}
2... d5 {[%clk 0:03:02.4]} 3. d4 {[%clk 0:03:03.8]} 3... c6 {[%clk 0:03:02.2]}
4. e4 {[%clk 0:03:04]} 4... dxe4 {[%clk 0:03:03.2]} 5. Nxe4 {[%clk 0:03:05.9]}
5... Bb4+ {[%clk 0:03:04.7]} 6. Nc3 {[%clk 0:03:06.1]} 6... c5 {[%clk
0:03:04.3]} 7. Be3 {[%clk 0:03:03.8]} 7... Nf6 {[%clk 0:03:01.4]} 8. a3 {[%clk
0:02:52.7]} 8... cxd4 {[%clk 0:02:51]} 9. Qxd4 {[%clk 0:02:46.3]} 9... Qxd4
{[%clk 0:02:27.4]} 10. Bxd4 {[%clk 0:02:48.2]} 10... Be7 {[%clk 0:02:28.9]} 11.
Nb5 {[%clk 0:02:42.9]} 11... Na6 {[%clk 0:02:27.9]} 12. Nf3 {[%clk 0:02:41.6]}
12... Bd7 {[%clk 0:02:21.2]} 13. Ne5 {[%clk 0:02:38.4]} 13... Bxb5 {[%clk
0:02:18.9]} 14. cxb5 {[%clk 0:02:40.3]} 14... Nc5 {[%clk 0:02:19.6]} 15. Bc4
{[%clk 0:02:35.5]} 15... Rd8 {[%clk 0:02:13.2]} 16. Rd1 {[%clk 0:02:35.8]} 16...
O-O {[%clk 0:02:06.2]} 17. b4 {[%clk 0:02:28.7]} 17... Nce4 {[%clk 0:02:03.7]}
18. f3 {[%clk 0:02:14.4]} 18... Nd6 {[%clk 0:02:00.7]} 19. Bxa7 {[%clk
0:02:13.1]} 19... Nxc4 {[%clk 0:01:35.6]} 20. Nxc4 {[%clk 0:02:04.7]} 20...
Rxd1+ {[%clk 0:01:36]} 21. Kxd1 {[%clk 0:02:05.7]} 21... Rc8 {[%clk 0:01:37.4]}
22. Na5 {[%clk 0:01:55.3]} 22... Rc3 {[%clk 0:01:27.7]} 23. Ke2 {[%clk
0:01:32.9]} 23... Rxa3 {[%clk 0:01:24.8]} 24. Rc1 {[%clk 0:01:33.4]} 24... h5
{[%clk 0:01:09.6]} 25. b6 {[%clk 0:01:15.3]} 25... Nd5 {[%clk 0:00:56]} 26. Nxb7
{[%clk 0:01:10.7]} 26... Bxb4 {[%clk 0:00:56.5]} 27. Nc5 {[%clk 0:00:47.2]}
27... Ra2+ {[%clk 0:00:57.5]} 28. Kd3 {[%clk 0:00:43]} 28... Nxb6 {[%clk
0:00:15.9]} 29. Bxb6 {[%clk 0:00:43]} 29... Rxg2 {[%clk 0:00:17.8]} 30. h4
{[%clk 0:00:34.4]} 30... Bxc5 {[%clk 0:00:15.4]} 31. Rxc5 {[%clk 0:00:32.6]}
31... g6 {[%clk 0:00:13.4]} 32. Rc8+ {[%clk 0:00:32.7]} 32... Kg7 {[%clk
0:00:14.6]} 33. Bd4+ {[%clk 0:00:33.4]} 33... f6 {[%clk 0:00:15.5]} 34. Rc7+
{[%clk 0:00:34.2]} 34... Kf8 {[%clk 0:00:17.1]} 35. Bxf6 {[%clk 0:00:35]} 35...
Rg3 {[%clk 0:00:17.3]} 36. Ke4 {[%clk 0:00:34.9]} 36... Rg1 {[%clk 0:00:19.2]}
37. Kf4 {[%clk 0:00:32]} 37... Ke8 {[%clk 0:00:19.9]} 38. Re7+ {[%clk
0:00:31.5]} 38... Kf8 {[%clk 0:00:21.5]} 39. Rxe6 {[%clk 0:00:31.4]} 39... Kf7
{[%clk 0:00:23.4]} 40. Rc6 {[%clk 0:00:32.5]} 40... Rb1 {[%clk 0:00:24.1]} 41.
Bg5 {[%clk 0:00:29.1]} 41... Rb4+ {[%clk 0:00:25]} 42. Kg3 {[%clk 0:00:30.4]}
42... Rb5 {[%clk 0:00:26]} 43. Rf6+ {[%clk 0:00:31.2]} 43... Kg7 {[%clk
0:00:27.3]} 44. Rd6 {[%clk 0:00:32.7]} 44... Kf7 {[%clk 0:00:28.7]} 45. Rd7+
{[%clk 0:00:34.1]} 45... Kf8 {[%clk 0:00:29.6]} 46. Rc7 {[%clk 0:00:32.5]} 46...
Rb1 {[%clk 0:00:27.6]} 47. Bh6+ {[%clk 0:00:33.4]} 47... Kg8 {[%clk 0:00:28.4]}
48. Rg7+ {[%clk 0:00:33.5]} 48... Kh8 {[%clk 0:00:29.9]} 49. Ra7 {[%clk
0:00:33.2]} 49... Rb4 {[%clk 0:00:26.9]} 50. Bf4 {[%clk 0:00:33.6]} 50... Rb5
{[%clk 0:00:25.5]} 51. Re7 {[%clk 0:00:33.2]} 51... Kg8 {[%clk 0:00:24.7]} 52.
Kf2 {[%clk 0:00:29]} 52... Kf8 {[%clk 0:00:24.2]} 53. Re5 {[%clk 0:00:28.5]}
53... Rb4 {[%clk 0:00:22.5]} 54. Re4 {[%clk 0:00:28.5]} 54... Rb5 {[%clk
0:00:22.4]} 55. Be5 {[%clk 0:00:26.3]} 55... Kf7 {[%clk 0:00:21.5]} 56. Ke3
{[%clk 0:00:27.5]} 56... Rb3+ {[%clk 0:00:21.9]} 57. Kf4 {[%clk 0:00:28.4]}
57... Rb1 {[%clk 0:00:23.5]} 58. Bd4 {[%clk 0:00:25.9]} 58... Rg1 {[%clk
0:00:24.1]} 59. Bxg1 {[%clk 0:00:25.9]} 1-0

[Event "*** Titled Tuesday Blitz"]
[Site "Chess.com"]
[Date "2018.06.05"]
[Round "2"]
[White "UNDERTAKER2001"]
[Black "lupta_robin"]
[Result "0-1"]
[WhiteElo "2361"]
[BlackElo "2422"]
[TimeControl "180+2"]
[EndTime "13:26:11 PDT"]
[Termination "lupta_robin won by resignation"]

1. d4 {[%clk 0:03:01.9]} 1... Nf6 {[%clk 0:03:00.1]} 2. c4 {[%clk 0:03:03.3]}
2... g6 {[%clk 0:03:01.4]} 3. Nc3 {[%clk 0:03:04.5]} 3... d5 {[%clk 0:03:02.8]}
4. Bg5 {[%clk 0:03:04.7]} 4... Ne4 {[%clk 0:03:03.8]} 5. Bh4 {[%clk 0:03:04.3]}
5... Nxc3 {[%clk 0:03:04.5]} 6. bxc3 {[%clk 0:03:05.2]} 6... dxc4 {[%clk
0:03:05.5]} 7. Nf3 {[%clk 0:03:05.6]} 7... Bg7 {[%clk 0:02:59]} 8. e3 {[%clk
0:03:06.1]} 8... Be6 {[%clk 0:02:56.4]} 9. Rb1 {[%clk 0:03:06.4]} 9... b6 {[%clk
0:02:56.2]} 10. Nd2 {[%clk 0:02:58.6]} 10... O-O {[%clk 0:02:40.1]} 11. Qf3
{[%clk 0:02:49.9]} 11... c6 {[%clk 0:02:11]} 12. Bxc4 {[%clk 0:02:47.7]} 12...
Bxc4 {[%clk 0:02:03]} 13. Nxc4 {[%clk 0:02:49.6]} 13... Qd5 {[%clk 0:01:55.1]}
14. Qxd5 {[%clk 0:02:25.3]} 14... cxd5 {[%clk 0:01:55.6]} 15. Nd2 {[%clk
0:02:23.8]} 15... Nc6 {[%clk 0:01:54.5]} 16. Ke2 {[%clk 0:02:20.1]} 16... Rfc8
{[%clk 0:01:47.9]} 17. Rhc1 {[%clk 0:02:19.8]} 17... e6 {[%clk 0:01:31.7]} 18.
c4 {[%clk 0:02:19.6]} 18... dxc4 {[%clk 0:01:29]} 19. Nxc4 {[%clk 0:02:19.7]}
19... Bf8 {[%clk 0:01:27.8]} 20. Bg3 {[%clk 0:02:09.2]} 20... Nb4 {[%clk
0:01:05.7]} 21. a3 {[%clk 0:01:51]} 21... Nd5 {[%clk 0:01:06.6]} 22. Kd3 {[%clk
0:01:47]} 22... Be7 {[%clk 0:01:01.1]} 23. Bd6 {[%clk 0:01:44.8]} 23... Kf8
{[%clk 0:01:00.7]} 24. Bxe7+ {[%clk 0:01:42.8]} 24... Kxe7 {[%clk 0:01:01.2]}
25. Ne5 {[%clk 0:01:43.8]} 25... f6 {[%clk 0:00:59.3]} 26. Nc6+ {[%clk
0:01:38.7]} 26... Kd6 {[%clk 0:00:59.6]} 27. Nb4 {[%clk 0:01:39.8]} 27... Rxc1
{[%clk 0:00:42.6]} 28. Rxc1 {[%clk 0:01:39.5]} 28... Ne7 {[%clk 0:00:43.3]} 29.
Na6 {[%clk 0:01:36.2]} 29... Rc8 {[%clk 0:00:41.7]} 30. Rc4 {[%clk 0:01:26.2]}
30... Rxc4 {[%clk 0:00:39.1]} 31. Kxc4 {[%clk 0:01:28.1]} 31... e5 {[%clk
0:00:34.8]} 32. dxe5+ {[%clk 0:01:23.3]} 32... Kxe5 {[%clk 0:00:35]} 33. Kb5
{[%clk 0:01:21.5]} 33... Kd6 {[%clk 0:00:27.5]} 34. a4 {[%clk 0:01:12.1]} 34...
Nd5 {[%clk 0:00:26.2]} 35. Kc4 {[%clk 0:00:51.4]} 35... f5 {[%clk 0:00:26.3]}
36. Kd4 {[%clk 0:00:41.7]} 36... g5 {[%clk 0:00:24.1]} 37. Kc4 {[%clk
0:00:39.1]} 37... h6 {[%clk 0:00:24]} 38. Kd4 {[%clk 0:00:39]} 38... Ke6 {[%clk
0:00:25.1]} 39. Kc4 {[%clk 0:00:31.9]} 39... Kd6 {[%clk 0:00:25.9]} 40. Kd4
{[%clk 0:00:32.8]} 40... Nc7 {[%clk 0:00:26.4]} 41. Nxc7 {[%clk 0:00:27.4]}
41... Kxc7 {[%clk 0:00:27.4]} 42. Ke5 {[%clk 0:00:28.7]} 42... a5 {[%clk
0:00:23.4]} 43. Kxf5 {[%clk 0:00:29.3]} 43... b5 {[%clk 0:00:23.8]} 44. axb5
{[%clk 0:00:28.4]} 44... a4 {[%clk 0:00:24.8]} 45. e4 {[%clk 0:00:27.5]} 45...
a3 {[%clk 0:00:26]} 46. e5 {[%clk 0:00:28.7]} 46... a2 {[%clk 0:00:27.3]} 47. e6
{[%clk 0:00:30]} 47... a1=Q {[%clk 0:00:28.2]} 48. b6+ {[%clk 0:00:27]} 48...
Kxb6 {[%clk 0:00:24]} 49. Kg6 {[%clk 0:00:23.8]} 49... Qh8 {[%clk 0:00:20.6]}
50. Kf7 {[%clk 0:00:22]} 50... Kc6 {[%clk 0:00:21.4]} 51. e7 {[%clk 0:00:21.7]}
51... Kd7 {[%clk 0:00:22.2]} 52. g4 {[%clk 0:00:22.2]} 52... Qe8+ {[%clk
0:00:22.9]} 53. Kg7 {[%clk 0:00:22.9]} 53... Qxe7+ {[%clk 0:00:23.6]} 54. Kxh6
{[%clk 0:00:24.2]} 54... Qf6+ {[%clk 0:00:24.6]} 55. Kh5 {[%clk 0:00:25.1]}
55... Ke7 {[%clk 0:00:24.2]} 56. h4 {[%clk 0:00:25.5]} 56... gxh4 {[%clk
0:00:22.1]} 57. g5 {[%clk 0:00:26.8]} 57... Qf4 {[%clk 0:00:21]} 58. g6 {[%clk
0:00:26.4]} 58... h3 {[%clk 0:00:21.9]} 59. g7 {[%clk 0:00:26.9]} 59... Kf7
{[%clk 0:00:19.2]} 60. f3 {[%clk 0:00:26.3]} 60... Qxf3+ {[%clk 0:00:19.7]} 61.
Kh6 {[%clk 0:00:25.2]} 61... Kg8 {[%clk 0:00:19.8]} 62. Kg5 {[%clk 0:00:25.7]}
62... h2 {[%clk 0:00:20.5]} 63. Kh4 {[%clk 0:00:25.2]} 63... h1=Q+ {[%clk
0:00:21.4]} 0-1